bitfinex-derivatives/quotes_BTCF0:USTF0_20260207
["timestamp","ask_amount","ask_price","bid_price","bid_amount"]
[1770475065709,0.349,68936.0,68910.0,0.52832373]
[1770475066212,0.91916661,68935.0,68910.0,0.52832373]
[1770475066418,0.57016661,68935.0,68910.0,0.52832373]
[1770475066617,0.349,68934.0,68910.0,0.52832373]
[1770475067018,0.34910609,68933.0,68910.0,0.52832373]
[1770475067212,0.349,68934.0,68910.0,0.52832373]
[1770475067612,0.349,68933.0,68910.0,0.52832373]
[1770475067810,0.00012676,68932.0,68910.0,0.52832373]
[1770475068120,0.57016661,68930.0,68910.0,0.52832373]
[1770475068417,0.349,68933.0,68910.0,0.52832373]
[1770475068720,0.00016549,68932.0,68914.0,0.52832373]
[1770475068922,0.57016661,68945.0,68916.0,0.52832373]
[1770475069122,0.57016661,68943.0,68916.0,0.52832373]
[1770475069511,0.57016661,68941.0,68916.0,0.52832373]
[1770475069923,0.57016661,68939.0,68916.0,0.52832373]
[1770475070422,0.349,68938.0,68916.0,0.52832373]
[1770475070814,0.349,68937.0,68916.0,0.52832373]
[1770475071119,0.349,68938.0,68916.0,0.52832373]
[1770475071324,0.57016661,68937.0,68916.0,0.52832373]
[1770475071623,0.57016661,68936.0,68916.0,0.52832373]
[1770475071809,0.349,68936.0,68916.0,0.52832373]
[1770475072010,0.349,68935.0,68916.0,0.52832373]
[1770475072216,0.349,68942.0,68920.0,0.52832373]
[1770475072417,0.349,68942.0,68922.0,0.52832373]
[1770475072622,0.57016661,68950.0,68924.0,0.52832373]
[1770475072623,0.349,68941.0,68924.0,0.52832373]
[1770475072824,0.349,68949.0,68924.0,0.52832373]
[1770475073225,0.349,68948.0,68926.0,0.52832373]
[1770475073525,0.349,68949.0,68926.0,0.52832373]
[1770475073928,0.349,68948.0,68926.0,0.52832373]
[1770475074116,0.349,68949.0,68926.0,0.52832373]
[1770475074518,0.349,68948.0,68926.0,0.52832373]
[1770475074711,0.57016661,68948.0,68926.0,0.52832373]
[1770475074915,0.349,68947.0,68926.0,0.52832373]
[1770475075424,0.349,68946.0,68926.0,0.52832373]
[1770475075718,0.349,68947.0,68926.0,0.52832373]
[1770475075912,0.57016661,68957.0,68929.0,0.52832373]
[1770475076112,0.349,68956.0,68929.0,0.52832373]
[1770475076317,0.57016661,68955.0,68929.0,0.52832373]
[1770475076520,0.57016661,68954.0,68929.0,0.52832373]
[1770475076721,0.57016661,68953.0,68929.0,0.52832373]
[1770475076916,0.91916661,68953.0,68929.0,0.52832373]
[1770475077118,0.57016661,68951.0,68929.0,0.52832373]
[1770475077518,0.349,68950.0,68929.0,0.52832373]
[1770475077922,0.349,68949.0,68929.0,0.52832373]
[1770475078124,0.349,68950.0,68929.0,0.52832373]
[1770475078424,0.349,68950.0,68909.0,0.52832373]
[1770475078425,0.57016661,68946.0,68909.0,0.52832373]
[1770475078816,0.57016661,68935.0,68909.0,0.52832373]
[1770475079327,0.57016661,68933.0,68909.0,0.52832373]
[1770475079728,0.91916661,68932.0,68909.0,0.52832373]
[1770475079924,0.57016661,68932.0,68909.0,0.52832373]
[1770475080229,0.349,68931.0,68909.0,0.52832373]
[1770475080729,0.349,68930.0,68909.0,0.52832373]
[1770475081025,0.57016661,68935.0,68909.0,0.52832373]
[1770475081332,0.57016661,68933.0,68909.0,0.52832373]
[1770475081829,0.349,68932.0,68909.0,0.52832373]
[1770475082326,0.349,68931.0,68909.0,0.52832373]
[1770475082516,0.57016661,68938.0,68909.0,0.52832373]
[1770475083134,0.43182039,68944.0,68889.0,0.52832373]
[1770475083135,0.57016661,68929.0,68889.0,0.52832373]
[1770475083430,0.57016661,68929.0,68889.0,0.52546485]
[1770475083627,0.57016661,68927.0,68889.0,0.52546485]
[1770475084125,0.57016661,68925.0,68889.0,0.52546485]
[1770475084618,0.57016661,68923.0,68889.0,0.52546485]
[1770475085018,0.57016661,68921.0,68889.0,0.52546485]
[1770475085418,0.014527,68908.0,68889.0,0.52546485]
[1770475085625,0.58469361,68908.0,68889.0,0.52546485]
[1770475085822,0.05743391,68907.0,68889.0,0.52546485]
[1770475086220,0.05743391,68906.0,68889.0,0.52546485]
[1770475086424,0.05743391,68907.0,68889.0,0.52546485]
[1770475086620,0.014528,68906.0,68876.0,0.29732111]
[1770475086826,0.64632829,68906.0,68877.0,0.54158575]
[1770475087023,0.014528,68904.0,68877.0,0.54158575]
[1770475087424,0.05743391,68903.0,68877.0,0.54158575]
[1770475087622,0.014529,68902.0,68877.0,0.54158575]
[1770475087823,0.07196291,68902.0,68877.0,0.54158575]
[1770475088034,0.05743391,68901.0,68877.0,0.54158575]
[1770475088232,0.014529,68900.0,68877.0,0.54158575]
[1770475088423,0.07196291,68900.0,68877.0,0.54158575]
[1770475088624,0.05743391,68899.0,68877.0,0.54158575]
[1770475089026,0.05743391,68898.0,68877.0,0.54158575]
[1770475089323,0.014531,68892.0,68877.0,0.54158575]
[1770475089528,0.014531,68892.0,68877.0,0.54258575]
[1770475090628,0.57436638,68905.0,68877.0,0.54258575]
[1770475090833,0.05743391,68904.0,68877.0,0.54258575]
[1770475091030,0.57089225,68913.0,68877.0,0.54158575]
[1770475091232,0.57089225,68911.0,68877.0,0.54158575]
[1770475091629,0.57089225,68909.0,68883.0,0.29240623]
[1770475091926,0.57089225,68909.0,68884.0,0.54158751]
[1770475092128,0.57089225,68907.0,68884.0,0.54158751]
[1770475092329,0.014529,68898.0,68884.0,0.54158751]
[1770475092835,0.05743391,68897.0,68884.0,0.54158751]
[1770475093034,0.014529,68898.0,68884.0,0.54158751]
[1770475093035,0.05743391,68896.0,68884.0,0.54158751]
[1770475093236,0.05743391,68897.0,68884.0,0.54158751]
[1770475093437,0.014529,68901.0,68884.0,0.54158751]
[1770475093636,0.05743391,68900.0,68884.0,0.54158751]
[1770475094037,0.05743391,68899.0,68884.0,0.54158751]
[1770475094240,0.014529,68899.0,68884.0,0.54158751]
[1770475094540,0.05743391,68898.0,68884.0,0.54158751]
[1770475095038,0.05743391,68897.0,68884.0,0.54158751]
[1770475095235,0.57089225,68915.0,68884.0,0.54158751]
[1770475095434,0.014528,68907.0,68888.0,0.54158751]
[1770475099040,0.57089225,68912.0,68888.0,0.54158751]
[1770475099637,0.57089225,68910.0,68888.0,0.54158751]
[1770475101437,0.57089225,68917.0,68892.0,0.54158751]
[1770475101741,0.014527,68911.0,68892.0,0.54158751]
[1770475102336,0.014527,68909.0,68892.0,0.54158751]
[1770475102538,0.014528,68903.0,68892.0,0.54158751]
[1770475102739,0.014528,68903.0,68885.0,0.55611951]
[1770475102936,0.014529,68901.0,68885.0,0.54158751]
[1770475104746,0.01453,68897.0,68885.0,0.54158751]
[1770475105240,0.014529,68900.0,68885.0,0.55611951]
[1770475105546,0.014528,68903.0,68888.0,0.55611851]
[1770475106442,0.014528,68903.0,68888.0,0.34021734]
[1770475106748,0.014528,68903.0,68888.0,0.32568634]
[1770475106946,0.014529,68901.0,68888.0,0.32568634]
[1770475107750,0.014529,68901.0,68888.0,0.32668634]
[1770475108445,0.014529,68901.0,68888.0,0.32568634]
[1770475108640,0.57089225,68881.0,68853.0,0.43070193]
[1770475108942,0.014536,68866.0,68855.0,0.28077873]
[1770475109145,0.57089225,68875.0,68856.0,0.54158751]
[1770475109146,0.014536,68868.0,68856.0,0.54158751]
[1770475109342,0.349,68864.0,68856.0,0.50307151]
[1770475109548,0.014533,68880.0,68858.0,0.37600735]
[1770475110144,0.014532,68887.0,68864.0,0.014536]
[1770475110448,0.014533,68880.0,68865.0,0.37600735]
[1770475110751,0.00011978,68879.0,68865.0,0.37600735]
[1770475110946,0.00010388,68878.0,68865.0,0.37600735]
[1770475111146,0.014533,68880.0,68865.0,0.37600735]
[1770475111353,0.57089225,68887.0,68865.0,0.37600735]
[1770475111354,0.014534,68878.0,68865.0,0.37600735]
[1770475112051,0.00013757,68877.0,68865.0,0.37600735]
[1770475112251,0.0001364,68876.0,68865.0,0.37600735]
[1770475112454,0.0001081,68875.0,68865.0,0.37600735]
[1770475113450,0.00015796,68874.0,68853.0,0.38454712]
[1770475113754,0.014536,68869.0,68846.0,0.38454712]
[1770475114054,0.014537,68863.0,68846.0,0.38454712]
[1770475114243,0.57089225,68869.0,68842.0,0.38474712]
[1770475114643,0.014536,68867.0,68844.0,0.38454712]
[1770475115246,0.014536,68865.0,68844.0,0.38454712]
[1770475115557,0.57089225,68867.0,68844.0,0.38454712]
[1770475115944,0.014537,68860.0,68844.0,0.38454712]
[1770475116148,0.00013169,68859.0,68844.0,0.37554712]
[1770475116557,0.00013479,68858.0,68844.0,0.37554712]
[1770475116747,0.00013606,68857.0,68844.0,0.37554712]
[1770475117143,0.01467406,68857.0,68836.0,0.28772472]
[1770475117348,0.014538,68857.0,68836.0,0.68533594]
[1770475117555,0.014538,68857.0,68837.0,0.39761122]
[1770475117752,0.55975506,68860.0,68837.0,0.39761122]
[1770475117945,0.014539,68851.0,68829.0,0.39781122]
[1770475118147,0.55975506,68854.0,68824.0,0.0002]
[1770475118346,0.014538,68859.0,68813.0,0.39761122]
[1770475118347,0.55975506,68839.0,68813.0,0.39761122]
[1770475118655,0.01454,68850.0,68826.0,0.04861122]
[1770475118856,0.01454,68847.0,68826.0,0.04861122]
[1770475119156,0.59787533,68837.0,68816.0,0.014547]
[1770475119356,0.59787533,68837.0,68789.0,0.072763]
[1770475119357,0.014545,68825.0,68803.0,0.0270357]
[1770475119559,0.014545,68822.0,68803.0,0.0270357]
[1770475120050,0.57432143,68829.0,68799.0,0.01455]
[1770475120245,0.58886743,68818.0,68795.0,0.0002]
[1770475120448,0.58886743,68818.0,68757.0,0.11593082]
[1770475120449,0.57419202,68809.0,68737.0,0.11593082]
[1770475120650,0.14772096,68760.0,68736.0,0.02762392]
[1770475120848,0.57412535,68777.0,68749.0,0.02762392]
[1770475121049,0.014557,68768.0,68740.0,0.02762392]
[1770475121244,0.58333333,68767.0,68741.0,0.01718692]
[1770475121448,0.58333333,68767.0,68720.0,0.072837]
[1770475121449,0.025,68731.0,68699.0,0.072859]
[1770475121645,0.58333333,68759.0,68710.0,0.072848]
[1770475121849,0.58333333,68758.0,68710.0,0.072848]
[1770475122049,0.58333333,68750.0,68723.0,0.014566]
[1770475122250,0.58333333,68733.0,68707.0,0.01457]
[1770475122450,0.58333333,68744.0,68692.0,0.072867]
[1770475122659,0.58333333,68744.0,68699.0,0.072859]
[1770475122862,0.59789333,68754.0,68723.0,0.014566]
[1770475123048,0.58333333,68749.0,68718.0,0.014567]
[1770475123253,0.58333333,68749.0,68714.0,0.014568]
[1770475123648,0.58333333,68739.0,68716.0,0.014568]
[1770475123853,0.58333333,68737.0,68718.0,0.0002]
[1770475124056,0.58333333,68735.0,68711.0,0.014569]
[1770475124252,0.014557,68768.0,68690.0,0.2899052]
[1770475124253,0.58333333,68733.0,68690.0,0.2899052]
[1770475124557,0.014557,68768.0,68703.0,0.0002]
[1770475124558,0.58333333,68731.0,68703.0,0.0002]
[1770475124759,0.58333333,68742.0,68718.0,0.014567]
[1770475125365,0.58333333,68741.0,68718.0,0.014567]
[1770475125550,0.58333333,68741.0,68713.0,0.0002]
[1770475125551,0.58333333,68740.0,68713.0,0.0002]
[1770475125754,0.58333333,68739.0,68713.0,0.0002]
[1770475126064,0.58333333,68738.0,68713.0,0.0002]
[1770475126256,0.58333333,68738.0,68716.0,0.014568]
[1770475126661,0.58333333,68737.0,68716.0,0.014568]
[1770475127263,0.58333333,68747.0,68722.0,0.014567]
[1770475128265,0.58333333,68747.0,68721.0,0.014567]
[1770475128562,0.58333333,68745.0,68714.0,0.0002]
[1770475128864,0.58333333,68743.0,68714.0,0.0002]
[1770475129161,0.58333333,68732.0,68714.0,0.0002]
[1770475129354,0.59789833,68732.0,68714.0,0.0002]
[1770475129550,0.014565,68729.0,68710.0,0.0002]
[1770475129760,0.58333333,68730.0,68710.0,0.0002]
[1770475130460,0.59789833,68730.0,68710.0,0.0002]
[1770475130766,0.59789833,68728.0,68708.0,0.0002]
[1770475130965,0.59789933,68724.0,68706.0,0.0002]
[1770475131165,0.58333333,68716.0,68676.0,0.00018193]
[1770475131370,0.5813675,68691.0,68653.0,0.00589747]
[1770475131553,0.14772096,68710.0,68645.0,0.072916]
[1770475131554,0.5783675,68724.0,68679.0,0.072881]
[1770475131752,0.5783675,68724.0,68666.0,0.18824]
[1770475132358,0.58333333,68715.0,68680.0,0.014575]
[1770475132563,0.014568,68716.0,68680.0,0.014575]
[1770475132564,0.58331666,68713.0,68680.0,0.014575]
[1770475132765,0.00016364,68712.0,68679.0,5e-05]
[1770475132964,0.58331666,68732.0,68702.0,0.014571]
[1770475133269,0.58331666,68732.0,68708.0,0.014569]
[1770475133463,0.58331666,68732.0,68712.0,0.014569]
[1770475133664,0.58333333,68748.0,68728.0,0.014565]
[1770475134357,0.00018079,68747.0,68728.0,0.014565]
[1770475134562,0.58333333,68748.0,68728.0,0.014565]
[1770475135157,0.072777,68777.0,68721.0,0.28849765]
[1770475135158,0.58333333,68758.0,68732.0,0.014564]
[1770475135357,0.072777,68777.0,68732.0,0.014564]
[1770475135358,0.59789233,68757.0,68732.0,0.014564]
[1770475135559,0.014562,68746.0,68720.0,0.014567]
[1770475135860,0.349,68722.0,68710.0,0.0002]
[1770475136057,0.349,68722.0,68705.0,0.01457]
[1770475136357,0.58333333,68730.0,68705.0,0.01457]
[1770475136559,0.58333333,68742.0,68699.0,0.29587399]
[1770475136864,0.58333333,68740.0,68715.0,0.014568]
[1770475137065,0.58333333,68740.0,68699.0,0.29587399]
[1770475137266,0.58333333,68733.0,68705.0,0.01457]
[1770475137462,0.58333333,68731.0,68705.0,0.01457]
[1770475137666,0.01456,68753.0,68698.0,0.0002]
[1770475137667,0.58333333,68716.0,68698.0,0.0002]
[1770475137856,0.58333333,68714.0,68687.0,0.014574]
[1770475138063,0.58333333,68714.0,68693.0,0.014573]
[1770475138557,0.58333333,68711.0,68688.0,0.014574]
[1770475138960,0.58333333,68709.0,68674.0,0.0002]
[1770475139160,0.58333333,68705.0,68680.0,0.014575]
[1770475139456,0.59790533,68695.0,68669.0,0.014578]
[1770475139661,0.58333333,68691.0,68668.0,0.014578]
[1770475139961,0.58333333,68691.0,68659.0,0.0002]
[1770475139962,0.58333333,68690.0,68671.0,0.014577]
[1770475140164,0.58333333,68688.0,68659.0,0.0002]
[1770475140466,0.58333333,68701.0,68658.0,0.29265621]
[1770475140657,0.58333333,68701.0,68665.0,0.014579]
[1770475140857,0.58333333,68701.0,68686.0,0.014574]
[1770475141264,0.58333333,68712.0,68674.0,0.072886]
[1770475141465,0.58333333,68712.0,68687.0,0.0002]
[1770475141656,0.58333333,68722.0,68687.0,0.0002]
[1770475141857,0.58333333,68722.0,68701.0,0.014571]
[1770475142058,0.58333333,68707.0,68683.0,0.014575]
[1770475142371,0.58333333,68703.0,68666.0,0.014578]
[1770475142668,0.58333333,68714.0,68694.0,0.014572]
[1770475142866,0.58333333,68714.0,68693.0,0.014573]
[1770475143062,0.58333333,68714.0,68696.0,0.014572]
[1770475143257,0.58333333,68709.0,68676.0,0.014576]
[1770475143458,0.58333333,68709.0,68693.0,0.014573]
[1770475143658,0.58333333,68696.0,68669.0,0.0002]
[1770475143859,0.58333333,68674.0,68602.0,0.11318073]
[1770475144166,0.58333333,68669.0,68616.0,0.014589]
[1770475144460,0.58333333,68669.0,68599.0,0.0002]
[1770475144461,0.58333333,68660.0,68621.0,0.014588]
[1770475144769,0.58333333,68658.0,68612.0,0.27245149]
[1770475144962,0.014578,68666.0,68605.0,0.29839925]
[1770475144963,0.58333333,68656.0,68623.0,0.014587]
[1770475145166,0.58333333,68656.0,68608.0,0.072956]
[1770475145167,0.00016339,68655.0,68615.0,0.072948]
[1770475145467,0.58333333,68668.0,68631.0,0.014586]
[1770475145665,0.14772096,68690.0,68605.0,0.29839925]
[1770475145666,0.58333333,68665.0,68616.0,0.014589]
[1770475145966,0.58333333,68642.0,68608.0,0.0002]
[1770475146361,0.58333333,68682.0,68613.0,0.072951]
[1770475146566,0.58333333,68694.0,68659.0,0.01458]
[1770475146872,0.58333333,68690.0,68648.0,0.014582]
[1770475147072,0.58333333,68690.0,68654.0,0.014581]
[1770475147263,0.58333333,68690.0,68652.0,0.02650648]
[1770475147463,0.58333333,68690.0,68655.0,0.014581]
[1770475147764,0.58333333,68690.0,68656.0,0.01192548]
[1770475148163,0.58333333,68690.0,68621.0,0.0002]
[1770475148164,0.58333333,68690.0,68644.0,0.01192548]
[1770475148368,0.57935817,68688.0,68647.0,0.014582]
[1770475148571,0.57935817,68682.0,68645.0,0.014583]
[1770475148871,0.00018739,68681.0,68657.0,0.01458]
[1770475149766,0.072847,68711.0,68651.0,0.01192548]
[1770475149767,0.57378426,68695.0,68651.0,0.01192548]
[1770475150072,0.57378426,68688.0,68646.0,0.0002]
[1770475150261,0.57378426,68688.0,68642.0,0.04323021]
[1770475150464,0.57378426,68684.0,68642.0,0.04323021]
[1770475150760,0.57378426,68684.0,68653.0,0.014581]
[1770475150964,0.43182039,68730.0,68656.0,0.02864721]
[1770475150965,0.58835626,68696.0,68656.0,0.02864721]
[1770475151366,0.58708082,68694.0,68657.0,0.01458]
[1770475151567,0.57250782,68692.0,68657.0,0.01458]
[1770475151767,0.014573,68694.0,68657.0,0.01458]
[1770475151768,0.57250782,68691.0,68657.0,0.01458]
[1770475152675,0.57250782,68691.0,68657.0,0.04705651]
[1770475152868,0.57250782,68691.0,68664.0,0.014579]
[1770475153069,0.57250782,68691.0,68659.0,0.01458]
[1770475153272,0.57250782,68690.0,68659.0,0.01458]
[1770475153574,0.57250782,68690.0,68663.0,0.014579]
[1770475153764,0.5774288,68689.0,68658.0,0.01458]
[1770475153966,0.00017762,68688.0,68658.0,0.01458]
[1770475154163,0.5774288,68689.0,68658.0,0.01458]
[1770475154476,0.5920028,68687.0,68658.0,0.01458]
[1770475155161,0.5920038,68684.0,68658.0,0.01458]
[1770475155773,0.5920038,68684.0,68653.0,0.014581]
[1770475156172,0.58333333,68680.0,68657.0,0.01458]
[1770475156370,0.58333333,68678.0,68645.0,0.01771359]
[1770475156565,0.014577,68676.0,68645.0,0.01771359]
[1770475156768,0.014578,68671.0,68645.0,0.01771359]
[1770475156967,0.014577,68672.0,68655.0,0.0002]
[1770475157174,0.58333333,68672.0,68628.0,0.00012235]
[1770475157368,0.58333333,68672.0,68646.0,0.014583]
[1770475157677,0.014578,68668.0,68642.0,0.014584]
[1770475158275,0.00011398,68667.0,68632.0,0.00539475]
[1770475158478,0.014578,68668.0,68646.0,0.014583]
[1770475158674,0.00015186,68667.0,68646.0,0.014583]
[1770475158875,0.00012012,68666.0,68637.0,0.00539475]
[1770475159174,0.59611408,68666.0,68645.0,0.014583]
[1770475159568,0.01458,68658.0,68634.0,0.014585]
[1770475159775,0.58225611,68657.0,68628.0,0.00012235]
[1770475160076,0.58225611,68653.0,68628.0,0.00012235]
[1770475160371,0.58225611,68646.0,68628.0,0.00012235]
[1770475160578,0.01458,68661.0,68619.0,0.014588]
[1770475160579,0.59684011,68641.0,68619.0,0.014588]
[1770475160768,0.014585,68635.0,68604.0,0.00323166]
[1770475160968,0.58225611,68629.0,68601.0,0.0002]
[1770475161268,0.014588,68620.0,68601.0,0.0002]
[1770475161572,0.58333333,68620.0,68601.0,0.014592]
[1770475161770,0.59792033,68628.0,68592.0,0.014594]
[1770475162086,0.58333333,68625.0,68588.0,0.01630292]
[1770475162376,0.58333333,68625.0,68570.0,0.014599]
[1770475162377,0.5730951,68608.0,68570.0,0.03071467]
[1770475162564,0.014594,68595.0,68559.0,0.0308405]
[1770475162765,0.5730951,68591.0,68559.0,0.00012583]
[1770475163172,0.14772096,68580.0,68559.0,0.00012583]
[1770475163379,0.72601629,68610.0,68570.0,0.015114]
[1770475163565,0.014584,68640.0,68603.0,0.014592]
[1770475163566,6.9e-07,68609.0,68603.0,0.014592]
[1770475163764,0.57829533,68639.0,68589.0,0.015114]
[1770475163965,0.57829533,68636.0,68614.0,0.014589]
[1770475164168,0.57700691,68649.0,68594.0,0.01897926]
[1770475164370,0.014584,68641.0,68615.0,0.014589]
[1770475164574,0.57214457,68648.0,68611.0,0.01459]
[1770475164778,0.57214457,68648.0,68627.0,0.014587]
[1770475164978,0.57214457,68660.0,68643.0,0.014583]
[1770475165169,0.57214457,68660.0,68622.0,0.03356626]
[1770475165374,0.43182039,68698.0,68652.0,0.014581]
[1770475165375,0.57489328,68672.0,68652.0,0.014581]
[1770475165670,0.57489328,68672.0,68637.0,0.02532015]
[1770475166076,0.01458,68658.0,68633.0,0.014585]
[1770475166273,0.57489328,68658.0,68616.0,0.31058373]
[1770475166575,0.57489328,68656.0,68630.0,0.014586]
[1770475166780,0.57489328,68655.0,68630.0,0.014586]
[1770475166991,0.57489328,68654.0,68618.0,0.02532015]
[1770475167286,0.58947528,68652.0,68612.0,0.00015478]
[1770475167582,0.57268606,68645.0,68612.0,0.00015478]
[1770475167885,0.58726906,68645.0,68623.0,0.014588]
[1770475168274,0.57268606,68644.0,68612.0,0.00015478]
[1770475168474,0.014586,68629.0,68612.0,0.00015478]
[1770475168776,0.58727306,68625.0,68582.0,0.03214181]
[1770475168973,0.14893042,68640.0,68582.0,0.03214181]
[1770475168974,0.57268606,68617.0,68582.0,0.03214181]
[1770475169171,0.57268606,68617.0,68574.0,0.29045879]
[1770475169378,0.014586,68632.0,68574.0,0.29045879]
[1770475169379,0.57051305,68639.0,68590.0,0.014595]
[1770475169683,0.57051305,68639.0,68601.0,0.03846083]
[1770475170273,0.57051305,68639.0,68604.0,0.03846083]
[1770475170589,0.014582,68648.0,68624.0,0.014587]
[1770475171877,0.00011447,68647.0,68624.0,0.014587]
[1770475172080,0.00012175,68646.0,68604.0,0.03846083]
[1770475172277,0.57576147,68644.0,68625.0,0.04398308]
[1770475172477,0.54651744,68637.0,68617.0,0.014589]
[1770475172779,0.54651744,68651.0,68617.0,0.014589]
[1770475172978,0.54651744,68651.0,68594.0,0.07297]
[1770475172979,0.54651744,68635.0,68592.0,0.11044766]
[1770475173186,0.014588,68621.0,68597.0,0.014593]
[1770475173386,0.54651744,68624.0,68566.0,0.10563261]
[1770475173580,0.133,68599.0,68566.0,0.10563261]
[1770475173772,0.133,68599.0,68583.0,0.014596]
[1770475174083,0.54812246,68592.0,68565.0,0.0002]
[1770475174284,0.56271746,68588.0,68565.0,0.0002]
[1770475174479,0.54812246,68586.0,68563.0,0.0146]
[1770475174785,0.00017755,68585.0,68572.0,0.014598]
[1770475175081,0.00017755,68585.0,68562.0,0.00016497]
[1770475175082,0.00017755,68585.0,68576.0,0.014597]
[1770475175274,0.54812246,68592.0,68562.0,0.00016497]
[1770475175475,0.014592,68603.0,68579.0,0.014597]
[1770475175676,0.54964292,68592.0,68567.0,0.014599]
[1770475175876,0.54964292,68589.0,68562.0,0.00016497]
[1770475176088,0.014593,68599.0,68577.0,0.014597]
[1770475176382,0.216,68563.0,68550.0,0.0002]
[1770475176582,0.56375123,68588.0,68563.0,0.0146]
[1770475176771,0.56375123,68588.0,68544.0,0.1158332]
[1770475176772,0.54915623,68580.0,68562.0,0.0146]
[1770475176973,0.54915623,68580.0,68565.0,0.0146]
[1770475177286,4.6e-07,68579.0,68573.0,0.014598]
[1770475177585,4.6e-07,68579.0,68553.0,0.1158332]
[1770475177586,4.6e-07,68579.0,68569.0,0.014599]
[1770475177978,4.6e-07,68579.0,68572.0,0.014598]
[1770475178179,4.6e-07,68579.0,68568.0,0.014599]
[1770475178489,4.6e-07,68579.0,68571.0,0.014599]
[1770475178872,0.54915623,68592.0,68555.0,0.11449646]
[1770475179084,4.8e-07,68591.0,68587.0,0.014595]
[1770475179383,0.54915623,68598.0,68558.0,0.014601]
[1770475179686,0.54915623,68598.0,68580.0,0.014597]
[1770475179884,0.54915623,68598.0,68561.0,0.56498926]
[1770475180077,0.54915623,68597.0,68561.0,0.56498926]
[1770475180277,0.54915623,68597.0,68583.0,0.014596]
[1770475180491,0.54915623,68597.0,68563.0,0.56498926]
[1770475180679,0.54915623,68597.0,68578.0,0.014597]
[1770475180880,0.014594,68592.0,68573.0,0.014598]
[1770475181088,0.014594,68592.0,68553.0,0.014602]
[1770475181283,0.54915623,68592.0,68569.0,0.014599]
[1770475181487,0.014597,68579.0,68559.0,0.014601]
[1770475181685,0.014598,68576.0,68540.0,0.56498926]
[1770475181883,0.54915623,68568.0,68540.0,0.014605]
[1770475182087,0.014601,68563.0,68528.0,0.56498926]
[1770475182288,0.014601,68563.0,68542.0,0.014605]
[1770475182587,0.014601,68563.0,68522.0,0.0002]
[1770475182588,0.54915623,68563.0,68522.0,0.0002]
[1770475182786,0.54915623,68576.0,68537.0,0.56498926]
[1770475183091,0.54931565,68562.0,68525.0,0.56498926]
[1770475183392,0.54915623,68574.0,68544.0,0.014604]
[1770475183589,0.54915623,68574.0,68529.0,0.014607]
[1770475183590,0.54915623,68574.0,68554.0,0.014602]
[1770475183790,0.54915623,68570.0,68524.0,0.00014501]
[1770475184003,0.54915623,68555.0,68532.0,0.014607]
[1770475184183,0.54915623,68555.0,68524.0,0.00014501]
[1770475184493,0.54915623,68533.0,68489.0,0.56498926]
[1770475184791,0.54915623,68562.0,68515.0,0.56498926]
[1770475184979,0.54915623,68556.0,68533.0,0.014607]
[1770475185177,0.54915623,68550.0,68499.0,0.56498926]
[1770475185386,0.54915623,68550.0,68516.0,0.01461]
[1770475185600,0.54915623,68550.0,68529.0,0.014607]
[1770475185788,0.54915623,68550.0,68510.0,0.56498926]
[1770475185789,0.014603,68549.0,68510.0,0.56498926]
[1770475186092,0.54915623,68547.0,68522.0,0.014609]
[1770475186290,0.54915623,68575.0,68547.0,0.014604]
[1770475186589,0.0146,68565.0,68522.0,0.56498926]
[1770475186788,0.54915623,68566.0,68522.0,0.56498926]
[1770475186789,0.54915623,68566.0,68536.0,0.014606]
[1770475187085,0.56375623,68566.0,68522.0,0.56498926]
[1770475187290,0.00011407,68574.0,68551.0,0.014603]
[1770475187480,0.54915623,68578.0,68551.0,0.014603]
[1770475187685,0.54915623,68578.0,68558.0,0.014601]
[1770475187986,0.56375323,68578.0,68552.0,0.014603]
[1770475188187,0.00016137,68577.0,68552.0,0.014603]
[1770475188382,0.00010796,68576.0,68552.0,0.014603]
[1770475188584,0.014598,68574.0,68548.0,0.014604]
[1770475189285,0.0146,68567.0,68543.0,0.014605]
[1770475189487,0.56375623,68565.0,68539.0,0.014605]
[1770475189681,0.0146,68563.0,68539.0,0.014605]
[1770475189887,0.54915623,68565.0,68539.0,0.014605]
[1770475190196,0.014601,68560.0,68527.0,0.56498926]
[1770475190694,0.00017789,68559.0,68541.0,0.014605]
[1770475190882,0.00014195,68558.0,68541.0,0.014605]
[1770475191080,0.014791,68609.0,68531.0,0.56498926]
[1770475191081,0.014597,68578.0,68554.0,0.014602]
[1770475192084,0.014593,68598.0,68552.0,0.014603]
[1770475192085,0.00013559,68577.0,68552.0,0.014603]
[1770475192394,0.54915623,68579.0,68552.0,0.014603]
[1770475192993,0.014598,68575.0,68539.0,0.56498926]
[1770475193188,0.014598,68575.0,68554.0,0.014602]
[1770475194292,0.014598,68576.0,68557.0,0.014602]
[1770475194594,0.54915623,68579.0,68557.0,0.014602]
[1770475194990,0.014599,68572.0,68539.0,0.56498926]
[1770475195193,0.54915623,68579.0,68552.0,0.014603]
[1770475195490,0.014598,68575.0,68541.0,0.56498926]
[1770475195690,0.56375323,68579.0,68556.0,0.014602]
[1770475195898,0.014598,68576.0,68556.0,0.014602]
[1770475196190,0.00018795,68575.0,68556.0,0.014602]
[1770475196384,0.56375123,68587.0,68556.0,0.014602]
[1770475196589,0.014598,68577.0,68556.0,0.014602]
[1770475196991,0.014597,68581.0,68560.0,0.014601]
[1770475197192,0.014596,68585.0,68565.0,0.0146]
[1770475197389,0.00016844,68580.0,68565.0,0.0146]
[1770475197589,0.014596,68582.0,68550.0,0.56498926]
[1770475197786,0.014596,68582.0,68564.0,0.0146]
[1770475197989,0.014596,68586.0,68566.0,0.0146]
[1770475198399,0.014596,68584.0,68562.0,0.0146]
[1770475198599,0.54915623,68607.0,68569.0,0.56498926]
[1770475198898,0.014591,68606.0,68569.0,0.56498926]
[1770475199092,0.014591,68606.0,68585.0,0.014596]
[1770475199291,0.54915623,68607.0,68588.0,0.014595]
[1770475199488,0.014588,68624.0,68585.0,0.014596]
[1770475199688,0.014585,68634.0,68611.0,0.01459]
[1770475199892,0.014584,68638.0,68617.0,0.014589]
[1770475200089,0.0002,68639.0,68602.0,0.56498926]
[1770475200090,0.014586,68633.0,68602.0,0.56498926]
[1770475200285,0.014587,68624.0,68595.0,0.014593]
[1770475200495,0.54915623,68623.0,68592.0,0.014594]
[1770475200685,0.54915623,68620.0,68585.0,0.56498926]
[1770475200890,0.00010812,68619.0,68606.0,0.56498926]
[1770475201195,0.0002,68641.0,68608.0,0.56498926]
[1770475201399,0.0002,68641.0,68596.0,0.014593]
[1770475201400,0.54915623,68655.0,68620.0,0.56498926]